bitfinex-derivatives/quotes_SOLF0:USTF0_20250831
["timestamp","ask_amount","ask_price","bid_price","bid_amount"]
[1756602330955,2.36396154,204.78,204.74,2.38]
[1756602331156,7.82,204.82,204.74,2.38]
[1756602331357,2.36257588,204.81,204.74,2.38]
[1756602331558,2.36257588,204.8,204.74,2.38]
[1756602331758,2.36257588,204.79,204.73,5.51119167]
[1756602331954,2.36257588,204.78,204.73,5.51119167]
[1756602332158,7.82,204.82,204.74,2.38]
[1756602332355,2.36087204,204.81,204.74,2.38]
[1756602332559,2.36087204,204.8,204.74,2.38]
[1756602332760,2.36087204,204.79,204.73,1.46532618]
[1756602333061,7.82,204.82,204.74,2.38]
[1756602333257,7.82,204.8,204.71,6.42586549]
[1756602333458,7.82,204.8,204.71,2.38]
[1756602333459,2.36073445,204.79,204.71,2.38]
[1756602333657,2.36073445,204.78,204.71,2.38]
[1756602333857,7.82,204.8,204.71,2.38]
[1756602334058,2.35971622,204.79,204.71,2.38]
[1756602334258,2.35971622,204.78,204.71,2.38]
[1756602334559,7.82,204.8,204.71,2.38]
[1756602334757,2.35835992,204.79,204.71,2.38]
[1756602334954,2.35835992,204.78,204.71,2.38]
[1756602335159,7.82,204.8,204.71,2.38]
[1756602335359,2.35829795,204.79,204.71,2.38]
[1756602335657,2.35829795,204.78,204.71,3.84532618]
[1756602335857,7.82,204.8,204.71,3.84532618]
[1756602336059,2.35718634,204.79,204.71,3.84532618]
[1756602336259,2.35718634,204.78,204.71,3.84532618]
[1756602336459,7.82,204.8,204.71,3.84532618]
[1756602336660,2.35584281,204.79,204.71,3.84532618]
[1756602336865,7.82,204.8,204.71,3.84532618]
[1756602337062,2.35582664,204.79,204.71,3.84532618]
[1756602337261,7.82,204.8,204.71,3.84532618]
[1756602337462,2.35467489,204.79,204.71,3.84532618]
[1756602337665,7.82,204.8,204.74,1.46532618]
[1756602337963,10.14467489,204.79,204.74,3.88532618]
[1756602338263,7.79,204.79,204.74,3.88532618]
[1756602339968,7.79,204.79,204.75,2.42]
[1756602340368,7.79,204.79,204.68,331.88586549]
[1756602340369,7.79,204.85,204.72,1.46532618]
[1756602340666,7.79,204.83,204.72,1.46532618]
[1756602340860,2.35175737,204.82,204.72,1.46532618]
[1756602341062,2.35175737,204.81,204.72,1.46532618]
[1756602341267,2.35175737,204.8,204.78,1.46532618]
[1756602341469,7.79,204.83,204.78,3.88532618]
[1756602341970,7.79,204.83,204.79,2.42]
[1756602342770,7.79,204.91,204.81,1.46532618]
[1756602342968,7.79,204.89,204.81,1.46532618]
[1756602343171,2.35027592,204.88,204.81,1.46532618]
[1756602343468,7.79,204.89,204.84,3.88532618]
[1756602343469,2.35027592,204.87,204.84,3.88532618]
[1756602343769,7.79,204.89,204.84,3.88532618]
[1756602344072,2.34981234,204.88,204.84,3.88532618]
[1756602344370,7.79,204.89,204.84,3.88532618]
[1756602345973,7.79,204.93,204.84,1.46532618]
[1756602346271,7.79,204.91,204.84,1.46532618]
[1756602346570,2.35011752,204.9,204.84,1.46532618]
[1756602349579,2.35019627,204.89,204.84,1.46532618]
[1756602349773,7.79,204.91,204.84,1.46532618]
[1756602350075,2.35320728,204.9,204.84,1.46532618]
[1756602350376,10.14320728,204.89,204.84,3.88532618]
[1756602350575,7.79,204.89,204.84,3.88532618]
[1756602350774,327.9,204.94,204.84,3.88532618]
[1756602350973,10.14323698,204.93,204.84,1.46532618]
[1756602351173,7.79,204.91,204.84,1.46532618]
[1756602351374,2.35323698,204.9,204.8,2.42]
[1756602351570,10.14323698,204.89,204.81,1.46532618]
[1756602351874,7.79,204.87,204.81,1.46532618]
[1756602352074,2.35323698,204.86,204.78,1.46532618]
[1756602352271,2.35395331,204.85,204.78,1.46532618]
[1756602352476,7.79,204.86,204.78,1.46532618]
[1756602352671,7.79,204.92,204.81,1.46532618]
[1756602352878,7.79,204.9,204.81,1.46532618]
[1756602353077,1.46532618,204.93,204.81,1.46532618]
[1756602353078,7.79,204.88,204.81,1.46532618]
[1756602353279,2.35393705,204.87,204.81,1.46532618]
[1756602353575,7.79,204.85,204.81,1.46532618]
[1756602354976,7.79,204.92,204.81,1.46532618]
[1756602355179,7.79,204.9,204.78,1.46532618]
[1756602355477,7.79,204.88,204.78,1.46532618]
[1756602355671,2.35505644,204.87,204.78,1.46532618]
[1756602355870,7.79,204.85,204.78,1.46532618]
[1756602356074,2.35505644,204.84,204.78,1.46532618]
[1756602356669,7.79,204.85,204.78,1.46532618]
[1756602356879,2.3565936,204.84,204.78,1.46532618]
[1756602357182,2.3572602,204.83,204.78,1.46532618]
[1756602357374,7.79,204.85,204.78,1.46532618]
[1756602357678,2.3572602,204.84,204.78,1.46532618]
[1756602357879,7.79,204.82,204.78,1.46532618]
[1756602359278,7.79,204.87,204.78,1.46532618]
[1756602359483,7.79,204.85,204.75,3.88532618]
[1756602359685,7.79,204.83,204.73,1.46532618]
[1756602359884,7.79,204.81,204.73,1.46532618]
[1756602360090,2.3592072,204.8,204.73,1.46532618]
[1756602360289,2.36043193,204.79,204.73,1.46532618]
[1756602360484,2.36043349,204.78,204.73,1.46532618]
[1756602360684,7.79,204.76,204.73,1.46532618]
[1756602360879,83.24,204.88,204.73,1.46532618]
[1756602361084,33.25043349,204.87,204.74,2.42]
[1756602361384,7.79,204.85,204.74,2.42]
[1756602361581,7.79,204.83,204.72,4.04586549]
[1756602361784,23.1,204.87,204.69,7.79576708]
[1756602361785,7.79,204.81,204.71,1.46532618]
[1756602361980,7.79,204.79,204.71,1.46532618]
[1756602362290,7.79,204.77,204.7,1.46532618]
[1756602362485,2.36043349,204.76,204.7,1.46532618]
[1756602362683,7.79,204.74,204.7,1.46532618]
[1756602363179,7.79,204.85,204.73,1.46532618]
[1756602363385,7.79,204.83,204.76,1.46532618]
[1756602363582,2.36213135,204.82,204.76,1.46532618]
[1756602363888,7.79,204.8,204.76,1.46532618]
[1756602364191,2.36213135,204.79,204.76,1.46532618]
[1756602364489,2.36213135,204.78,204.76,1.46532618]
[1756602364689,7.79,204.8,204.76,1.46532618]
[1756602364987,7.79,204.78,204.7,4.04586549]
[1756602365287,2.36494558,204.77,204.7,4.04586549]
[1756602365486,2.36494558,204.76,204.7,4.04586549]
[1756602365686,7.79,204.74,204.7,4.04586549]
[1756602365883,10.15494558,204.73,204.7,4.04586549]
[1756602366081,2.36658198,204.72,204.69,6.46586549]
[1756602366278,7.79,204.73,204.69,6.46586549]
[1756602366478,2.36767857,204.72,204.69,4.04586549]
[1756602366678,7.79,204.73,204.69,4.04586549]
[1756602366879,2.36769483,204.72,204.69,4.04586549]
[1756602367082,7.79,204.73,204.69,4.04586549]
[1756602367280,10.20769483,204.72,204.68,4.04586549]
[1756602367489,2.36769483,204.71,204.68,4.04586549]
[1756602367688,2.36769483,204.7,204.68,4.04586549]
[1756602367885,7.84,204.72,204.68,4.04586549]
[1756602368085,7.84,204.7,204.68,4.04586549]
[1756602368286,2.368993,204.69,204.67,4.04586549]
[1756602368486,7.84,204.74,204.66,4.04586549]
[1756602368689,2.36843811,204.73,204.66,4.04586549]
[1756602368889,10.20843811,204.72,204.66,4.04586549]
[1756602369089,10.20843811,204.71,204.67,4.04586549]
[1756602369287,2.36843811,204.7,204.66,4.04586549]
[1756602369589,2.36843811,204.69,204.66,6.45586549]
[1756602369789,7.84,204.71,204.66,6.45586549]
[1756602369990,2.36866579,204.7,204.66,6.45586549]
[1756602370191,7.84,204.71,204.67,4.04586549]
[1756602370192,2.36866579,204.69,204.67,4.04586549]
[1756602370490,7.84,204.71,204.67,4.04586549]
[1756602370790,2.36892745,204.7,204.67,4.04586549]
[1756602370990,2.36892745,204.69,204.67,4.04586549]
[1756602371193,7.84,204.71,204.68,4.04586549]
[1756602371492,2.36953085,204.7,204.68,4.04586549]
[1756602371692,2.36953085,204.69,204.68,4.04586549]
[1756602372090,2.36953085,204.69,204.67,4.04586549]
[1756602372284,7.84,204.71,204.67,4.04586549]
[1756602372488,2.36917215,204.7,204.67,4.04586549]
[1756602372690,2.36917215,204.69,204.67,4.04586549]
[1756602372891,7.84,204.71,204.67,4.04586549]
[1756602373089,2.36917215,204.7,204.67,4.04586549]
[1756602373285,7.84,204.75,204.68,2.41]
[1756602373491,2.36875206,204.74,204.68,2.41]
[1756602373691,10.20875206,204.73,204.68,6.45586549]
[1756602373992,2.44941077,204.9,204.64,24.38]
[1756602373993,2.36875206,204.72,204.7,2.41]
[1756602374187,7.84,204.77,204.7,2.41]
[1756602374387,2.36844804,204.76,204.7,2.41]
[1756602374588,10.20844804,204.75,204.7,2.41]
[1756602374789,2.36844804,204.74,204.7,2.41]
[1756602374989,2.36844804,204.73,204.7,2.41]
[1756602375288,2.36844804,204.72,204.7,2.41]
[1756602375486,22.64,204.82,204.7,2.41]
[1756602375686,10.20829435,204.81,204.7,2.41]
[1756602375990,7.84,204.79,204.7,2.41]
[1756602376189,2.36829435,204.78,204.7,2.41]
[1756602376396,2.36829435,204.77,204.7,2.41]
[1756602376596,2.36829435,204.76,204.7,2.41]
[1756602376795,2.36829435,204.76,204.69,4.04586549]
[1756602376796,2.36829435,204.75,204.72,2.41]
[1756602376999,7.84,204.79,204.73,2.41]
[1756602377198,2.36786705,204.78,204.74,2.41]
[1756602377398,2.36786705,204.77,204.74,2.41]
[1756602377595,2.36786705,204.76,204.74,2.41]
[1756602377896,7.84,204.79,204.74,2.41]
[1756602378099,10.20778662,204.78,204.74,2.41]
[1756602378298,2.36778662,204.77,204.74,2.41]
[1756602378500,2.36778662,204.76,204.74,2.41]
[1756602378698,7.84,204.78,204.74,2.41]
[1756602378900,2.36777111,204.77,204.74,2.41]
[1756602379096,2.36777111,204.76,204.74,2.41]
[1756602379294,7.84,204.78,204.74,2.41]
[1756602379495,2.36777737,204.77,204.74,2.41]
[1756602379699,2.36777737,204.76,204.73,2.41]
[1756602380000,7.84,204.82,204.74,4.04586549]
[1756602380190,2.37216828,204.81,204.74,4.04586549]
[1756602380397,10.21216828,204.8,204.71,4.04586549]
[1756602380600,2.37241374,204.79,204.71,4.04586549]
[1756602380900,7.84,204.77,204.7,2.44941077]
[1756602381097,2.37241374,204.76,204.69,2.41]
[1756602381298,7.84,204.77,204.63,8.88783545]
[1756602381299,10.21241374,204.75,204.67,4.02940245]
[1756602381497,7.84,204.75,204.67,4.02940245]
[1756602381696,2.37249306,204.74,204.67,4.02940245]
[1756602381896,2.37249306,204.73,204.67,4.02940245]
[1756602382099,7.84,204.71,204.66,4.02940245]
[1756602382299,7.84,204.71,204.66,6.43940245]
[1756602382500,7.84,204.71,204.67,2.4]
[1756602382695,7.84,204.71,204.67,6.42940245]
[1756602382998,7.84,204.71,204.66,4.02940245]
[1756602383196,7.84,204.78,204.66,6.42940245]
[1756602383496,7.84,204.76,204.66,6.42940245]
[1756602383700,2.37183534,204.75,204.66,6.42940245]
[1756602383999,2.37183534,204.74,204.66,6.42940245]
[1756602384204,2.37183534,204.73,204.66,6.42940245]
[1756602384499,2.37183534,204.72,204.66,6.42940245]
[1756602384800,2.37183534,204.71,204.66,6.42940245]
[1756602385002,7.84,204.76,204.66,6.42940245]
[1756602385299,2.3714729,204.75,204.68,4.02940245]
[1756602385600,2.3714729,204.74,204.66,6.42940245]
[1756602385801,2.3714729,204.73,204.66,6.42940245]
[1756602386097,2.3714729,204.72,204.66,6.42940245]
[1756602386290,2.3714729,204.71,204.67,2.4]
[1756602386491,7.84,204.74,204.67,2.4]
[1756602386692,2.37123841,204.73,204.64,4.02940245]
[1756602386892,2.37123841,204.73,204.63,2.4]
[1756602386893,10.21123841,204.72,204.63,6.42940245]
[1756602387192,2.37123841,204.71,204.64,6.42940245]
[1756602387395,2.37123841,204.7,204.68,3.86951645]
[1756602387601,7.84,204.76,204.68,3.86951645]
[1756602387799,2.37085441,204.75,204.68,3.86951645]
[1756602387996,7.84,204.76,204.68,3.86951645]
[1756602387997,2.37085441,204.74,204.68,3.86951645]
[1756602388200,10.21085441,204.73,204.68,3.86951645]
[1756602388397,2.37085441,204.72,204.68,3.86951645]
[1756602388595,2.37085441,204.71,204.64,6.42940245]
[1756602388798,2.37085441,204.7,204.65,1.46951645]
[1756602389097,7.84,204.73,204.65,1.46951645]
[1756602389098,2.37085441,204.69,204.65,1.46951645]
[1756602389300,7.84,204.73,204.66,2.4]
[1756602389597,2.37090242,204.72,204.66,2.4]
[1756602389897,2.37090242,204.71,204.66,2.4]
[1756602390097,2.37090242,204.7,204.68,1.46951645]
[1756602390302,2.37090242,204.69,204.68,1.46951645]
[1756602390604,1.46951645,204.81,204.68,1.46951645]
[1756602390902,10.21085189,204.8,204.68,3.86951645]
[1756602391104,7.84,204.8,204.68,3.86951645]
[1756602393706,7.84,204.8,204.71,1.46951645]
[1756602395807,7.84,204.8,204.71,3.86951645]
[1756602396006,7.84,204.8,204.71,7.8989189]
[1756602396311,7.84,204.8,204.72,4.02940245]
[1756602396706,7.84,204.8,204.71,7.8989189]
[1756602398013,7.84,204.8,204.68,5.4989189]
[1756602398208,7.84,204.8,204.68,1.46951645]
[1756602398511,7.3,204.78,204.68,5.4989189]
[1756602398712,7.3,204.78,204.69,6.42940245]
[1756602399911,7.3,204.78,204.7,4.02940245]
[1756602400315,7.3,204.85,204.74,1.46951645]
[1756602402713,7.3,204.85,204.73,2.4]
[1756602402914,7.3,204.85,204.71,5.4989189]
[1756602403218,7.3,204.85,204.72,4.02940245]
[1756602403417,7.3,204.85,204.71,5.4989189]
[1756602403718,84.3,204.85,204.72,6.42940245]
[1756602404219,84.3,204.85,204.73,4.02940245]
[1756602404513,7.3,204.85,204.75,2.4]
[1756602405412,5.40655039,204.92,204.81,1.46951645]
[1756602405413,7.3,204.91,204.81,1.46951645]
[1756602405617,7.3,204.91,204.83,4.02940245]
[1756602406015,7.3,204.91,204.85,2.4]
[1756602406216,7.3,204.98,204.85,2.4]
[1756602407520,7.3,204.98,204.87,1.46951645]
[1756602407718,7.3,204.98,204.86,1.46951645]
[1756602412426,7.3,204.98,204.85,3.86951645]
[1756602412620,7.3,204.96,204.82,1.46951645]
[1756602412926,74.58,205.02,204.81,2.4]
[1756602412927,7.3,204.93,204.81,2.4]
[1756602413223,7.3,204.93,204.81,3.86951645]
[1756602419931,7.3,204.93,204.82,2.4]
[1756602420333,7.3,204.93,204.87,1.46951645]
[1756602420534,7.3,204.99,204.88,2.4]
[1756602421032,7.3,204.99,204.86,1.46951645]
[1756602423436,7.3,204.99,204.87,2.4]
[1756602423735,116.46,204.99,204.87,2.4]
[1756602424434,7.3,204.99,204.87,2.4]
[1756602424830,7.3,204.99,204.87,3.86951645]
[1756602431538,7.3,204.99,204.88,2.39]
[1756602433637,7.3,204.99,204.9,1.46951645]
[1756602433932,7.3,204.99,204.91,2.39]
[1756602437739,7.68,204.96,204.86,2.39]
[1756602438347,7.68,204.96,204.83,1.46951645]
[1756602438548,7.68,204.96,204.84,2.39]
[1756602441642,7.68,204.94,204.8,3.85951645]
[1756602442146,7.68,204.91,204.8,3.85951645]
[1756602442645,7.68,204.91,204.8,2.39]
[1756602443742,7.68,204.91,204.75,4.02940245]
[1756602443950,7.68,204.91,204.7,336.23779026]
[1756602443951,7.68,204.88,204.74,2.37]
[1756602444248,7.68,204.88,204.73,5.4989189]
[1756602444249,7.68,204.88,204.77,2.37]
[1756602444747,7.68,204.88,204.77,6.39940245]
[1756602445051,7.68,204.95,204.83,2.37]
[1756602445348,55.76,204.95,204.83,2.37]
[1756602445544,7.68,204.95,204.83,2.37]
[1756602446243,7.68,204.95,204.83,6.39940245]
[1756602448044,7.68,204.95,204.85,1.46951645]
[1756602448249,7.68,204.95,204.86,2.37]
[1756602449045,7.68,204.95,204.86,3.83951645]
[1756602449340,7.68,204.95,204.89,1.46951645]
[1756602450650,7.68,205.01,204.9,6.39940245]
[1756602451253,1.46951645,204.98,204.87,4.02940245]
[1756602451453,7.68,204.97,204.85,4.02940245]
[1756602451648,7.68,204.97,204.86,4.02940245]
[1756602451848,7.68,204.94,204.84,4.02940245]
[1756602452050,7.68,204.94,204.83,4.02940245]
[1756602453054,7.68,204.94,204.81,6.84528353]
[1756602453055,7.68,204.94,204.84,4.02940245]
[1756602453455,7.68,204.94,204.83,4.02940245]
[1756602453851,7.68,204.94,204.85,4.02940245]
[1756602454155,7.68,204.94,204.84,6.39940245]
[1756602455950,7.68,204.94,204.84,2.37]
[1756602456347,7.68,204.94,204.85,1.46951645]
[1756602459457,7.68,204.94,204.84,6.39940245]
[1756602460560,7.68,204.94,204.84,2.37]
[1756602460955,7.68,204.94,204.84,6.39940245]
[1756602461357,7.68,204.94,204.84,2.37]
[1756602461656,9.14951645,204.94,204.82,4.02940245]
[1756602461959,9.14951645,204.94,204.81,4.02940245]
[1756602462460,9.14951645,204.94,204.82,4.02940245]
[1756602463156,7.68,204.94,204.81,4.02940245]
[1756602464565,7.31,204.91,204.8,6.41940245]
[1756602465060,7.31,204.91,204.8,2.39]
[1756602465665,7.31,204.88,204.79,4.02940245]
[1756602465966,7.31,204.88,204.76,7.8889189]
[1756602466460,7.31,204.85,204.76,4.02940245]
[1756602466664,7.31,204.85,204.73,4.02940245]
[1756602467569,7.31,204.85,204.72,7.8889189]
[1756602467863,7.31,204.85,204.72,3.85951645]
[1756602468069,7.31,204.82,204.72,2.39]
[1756602468369,7.31,204.82,204.69,5.4989189]
[1756602468565,7.31,204.82,204.7,2.39]
[1756602470765,8.77951645,204.82,204.7,2.39]
[1756602471368,8.77951645,204.82,204.69,1.46951645]
[1756602472765,8.77951645,204.82,204.66,3.85951645]
[1756602475169,9.62967585,204.82,204.66,3.85951645]
[1756602476075,7.31,204.78,204.66,3.85951645]
[1756602476666,7.31,204.78,204.66,2.39]
[1756602477072,7.31,204.78,204.64,1.46951645]
[1756602477375,7.31,204.78,204.65,2.39]
[1756602478170,7.31,204.75,204.65,2.39]
[1756602478672,7.31,204.75,204.61,1.46951645]
[1756602478876,7.31,204.75,204.62,2.39]
[1756602481780,7.31,204.72,204.61,1.46951645]
[1756602483381,61.15,204.72,204.62,2.39]
[1756602484681,7.31,204.72,204.62,2.39]
[1756602484978,58.65,204.72,204.62,2.39]
[1756602485384,58.65,204.72,204.62,3.85951645]
[1756602485582,58.65,204.72,204.62,2.39]
[1756602485777,7.31,204.77,204.62,2.39]
[1756602485981,7.31,204.77,204.68,2.39]
[1756602486685,7.31,204.77,204.67,1.46951645]
[1756602486888,7.31,204.75,204.64,2.39]
[1756602489788,1.46951645,204.73,204.6,2.43]
[1756602489987,132.73,204.72,204.6,2.43]
[1756602490493,134.19951645,204.72,204.6,2.43]
[1756602491193,7.31,204.7,204.6,2.43]
[1756602491594,7.31,204.65,204.52,2.43]
[1756602491789,1.46951645,204.63,204.52,2.43]
[1756602492093,7.31,204.61,204.52,2.43]
[1756602492292,25.12,204.6,204.52,2.43]
[1756602493195,7.31,204.58,204.52,2.43]
[1756602493389,7.31,204.58,204.43,2.43]
[1756602493598,7.31,204.58,204.49,2.43]
[1756602493788,45.23,204.58,204.49,2.43]
[1756602493991,43.16,204.6,204.51,1.46951645]
[1756602494293,43.16,204.6,204.51,2.43]
[1756602494294,49.52,204.6,204.51,2.43]
[1756602495892,55.54,204.6,204.51,2.43]
[1756602496799,7.31,204.59,204.51,2.43]
[1756602496995,1.46951645,204.72,204.51,2.43]
[1756602497300,7.31,204.65,204.51,2.43]
[1756602498087,7.31,204.62,204.51,2.43]
[1756602498288,1.46951645,204.63,204.51,2.43]
[1756602498289,7.31,204.6,204.51,2.43]
[1756602498599,31.57,204.6,204.51,2.43]
[1756602498792,31.57,204.6,204.49,1.46951645]
[1756602498793,7.31,204.6,204.49,1.46951645]
[1756602499101,7.31,204.6,204.5,2.43]
[1756602499399,7.96,204.59,204.5,2.43]
[1756602500799,7.31,204.58,204.5,2.43]
[1756602501389,7.31,204.58,204.42,2.43]
[1756602501390,1.46951645,204.57,204.42,2.43]
[1756602501596,57.75,204.56,204.42,3.89951645]
[1756602502301,57.75,204.56,204.42,2.43]
[1756602503095,7.31,204.54,204.42,2.43]
[1756602504297,8.77951645,204.54,204.42,2.43]
[1756602504498,7.31,204.54,204.43,1.46951645]
[1756602504697,125.38,204.53,204.44,2.42]
[1756602504898,7.31,204.54,204.44,2.42]
[1756602505096,7.31,204.54,204.47,2.42]
[1756602507400,7.31,204.58,204.47,2.42]
[1756602508105,57.97,204.58,204.47,3.88951645]
[1756602508306,7.31,204.58,204.47,3.88951645]
[1756602508510,106.09,204.58,204.47,3.88951645]
[1756602510801,7.31,204.58,204.47,3.88951645]
[1756602511001,132.65,204.58,204.47,3.88951645]
[1756602512006,7.31,204.58,204.47,3.88951645]
[1756602512306,132.65,204.58,204.47,3.88951645]
[1756602512605,7.31,204.58,204.47,3.88951645]
[1756602512806,132.63,204.58,204.47,3.88951645]
[1756602513407,7.31,204.58,204.47,3.88951645]
[1756602513808,57.69,204.58,204.47,3.88951645]
[1756602514001,57.69,204.58,204.47,2.42]
[1756602514410,7.31,204.58,204.47,2.42]
[1756602514713,7.31,204.58,204.5,2.42]
[1756602516005,329.90951645,204.64,204.5,2.42]
[1756602516006,7.31,204.63,204.5,2.42]
[1756602516210,7.31,204.63,204.53,2.42]
[1756602519208,7.31,204.63,204.56,2.41]
[1756602523014,7.31,204.63,204.52,5.37576708]
[1756602523015,7.31,204.63,204.51,7.90922196]
[1756602523214,7.31,204.63,204.51,3.87951645]
[1756602523408,7.31,204.63,204.51,7.90922196]
[1756602524208,7.31,204.63,204.52,2.41]
[1756602524413,7.31,204.63,204.52,6.43970551]
[1756602525217,7.31,204.63,204.52,2.41]
[1756602525417,7.31,204.63,204.57,1.46951645]
[1756602525617,7.31,204.63,204.57,3.87951645]
[1756602526114,7.31,204.63,204.57,2.41]
[1756602526416,7.31,204.63,204.55,5.49922196]
[1756602526618,7.31,204.63,204.55,1.46951645]
[1756602526816,7.31,204.63,204.55,3.87951645]
[1756602528719,7.31,204.63,204.55,1.46951645]
[1756602529021,7.31,204.63,204.52,5.49922196]
[1756602530026,7.31,204.63,204.53,4.02970551]
[1756602530229,7.31,204.63,204.52,5.49922196]
[1756602530526,7.31,204.63,204.53,4.02970551]
[1756602533330,7.31,204.63,204.54,4.02970551]
[1756602533833,7.31,204.63,204.53,4.02970551]
[1756602536531,7.31,204.63,204.54,4.02970551]
[1756602536928,7.31,204.63,204.53,4.02970551]
[1756602538337,7.31,204.63,204.54,4.02970551]
[1756602538535,7.31,204.63,204.53,4.02970551]
[1756602539337,7.31,204.63,204.53,5.49922196]
[1756602539830,7.31,204.63,204.53,1.46951645]
[1756602540230,7.31,204.63,204.52,4.02970551]
[1756602541639,7.33,204.61,204.5,4.02970551]
[1756602541833,1.46951645,204.6,204.5,4.02970551]
[1756602542039,7.33,204.59,204.49,4.02970551]
[1756602542241,7.33,204.56,204.46,4.02970551]
[1756602542538,7.33,204.56,204.45,4.02970551]
[1756602542942,7.33,204.56,204.44,4.02970551]
[1756602544136,7.33,204.56,204.43,4.02970551]
[1756602544345,7.33,204.56,204.42,3.87951645]
[1756602544346,7.33,204.56,204.45,6.43970551]
[1756602544536,7.33,204.56,204.46,4.02970551]
[1756602544742,7.33,204.56,204.45,6.43970551]
[1756602546340,7.33,204.56,204.45,2.41]
[1756602546835,7.33,204.56,204.45,6.43970551]
[1756602547039,7.33,204.56,204.47,4.02970551]
[1756602547343,7.33,204.56,204.46,6.43970551]
[1756602550947,7.33,204.56,204.48,4.02970551]
[1756602552646,7.33,204.56,204.47,4.02970551]
[1756602552945,7.33,204.56,204.48,4.02970551]
[1756602554348,7.33,204.56,204.47,4.02970551]
[1756602554538,7.33,204.56,204.46,6.43970551]
[1756602554742,7.33,204.56,204.47,4.02970551]
[1756602555145,7.33,204.56,204.47,4.0477142]
[1756602555742,7.33,204.56,204.46,6.4577142]
[1756602555942,7.33,204.56,204.47,4.0477142]
[1756602557342,7.33,204.56,204.46,6.4577142]
[1756602558844,7.23,204.66,204.47,2.44]
[1756602559051,7.23,204.66,204.55,7.95723065]
[1756602559652,7.23,204.66,204.55,2.44]
[1756602559653,1.46951645,204.64,204.55,2.44]
[1756602559850,1.46951645,204.64,204.54,4.0477142]
[1756602559851,7.23,204.63,204.51,2.44]
[1756602562153,7.23,204.63,204.51,6.4877142]
[1756602563351,7.23,204.63,204.52,7.91723065]
[1756602564654,7.23,204.63,204.52,3.86951645]
[1756602566853,7.23,204.63,204.52,2.4]
[1756602567253,8.69951645,204.63,204.52,2.4]
[1756602569752,7.23,204.56,204.49,4.0477142]
[1756602569954,7.23,204.56,204.46,2.4]
[1756602571754,7.23,204.56,204.46,6.4477142]
[1756602572757,7.23,204.56,204.47,6.4477142]
[1756602575357,7.23,204.56,204.48,4.0477142]
[1756602577563,7.23,204.56,204.47,6.4477142]
[1756602577752,7.23,204.56,204.5,4.0477142]
[1756602577956,7.52,204.62,204.51,2.41]
[1756602578158,7.52,204.62,204.51,6.4577142]
[1756602578357,7.52,204.62,204.51,2.41]
[1756602579155,7.52,204.62,204.51,6.4577142]
[1756602580359,7.52,204.62,204.52,6.4577142]
[1756602580568,7.52,204.62,204.53,4.0477142]
[1756602580759,7.52,204.62,204.52,6.4577142]
[1756602584366,7.52,204.62,204.53,4.0477142]
[1756602585067,7.52,204.62,204.54,4.0477142]
[1756602585967,7.52,204.62,204.55,2.41]
[1756602586866,7.52,204.68,204.57,2.41]
[1756602587568,7.52,204.68,204.57,6.4577142]
[1756602588463,7.52,204.68,204.58,2.41]
[1756602588668,7.52,204.68,204.58,6.4577142]
[1756602588869,7.52,204.68,204.59,1.46951645]
[1756602591466,7.52,204.64,204.54,6.4577142]
[1756602591665,7.52,204.64,204.54,2.41]
[1756602592759,7.52,204.64,204.54,6.4577142]
[1756602593463,7.52,204.64,204.56,6.4577142]
[1756602594165,7.52,204.64,204.57,4.0477142]
[1756602595071,7.52,204.64,204.58,4.0477142]